bitfinex/quotes_BTCUSD_20250124
["timestamp","ask_amount","ask_price","bid_price","bid_amount"]
[1737681856438,0.19376929,103710.0,103700.0,0.000142]
[1737681856615,0.30100132,103710.0,103700.0,0.00029112]
[1737681857426,1.80100132,103710.0,103700.0,0.00029112]
[1737681857634,1.89376929,103710.0,103700.0,0.00029112]
[1737681857864,1.89376929,103710.0,103700.0,0.07829112]
[1737681858795,1.89476929,103710.0,103700.0,0.07829112]
[1737681859169,1.91359699,103710.0,103700.0,0.07829112]
[1737681859377,0.41359699,103710.0,103700.0,0.07829112]
[1737681859704,0.52082902,103710.0,103700.0,0.07829112]
[1737681859882,2.02082902,103710.0,103700.0,0.07829112]
[1737681860444,2.02082902,103710.0,103700.0,0.00029112]
[1737681861776,2.03067641,103710.0,103700.0,0.00029112]
[1737681863948,0.53067641,103710.0,103700.0,0.00029112]
[1737681864161,0.63790844,103710.0,103700.0,0.00029112]
[1737681864341,0.74525573,103710.0,103700.0,0.00029112]
[1737681864640,2.32185573,103710.0,103700.0,0.00029112]
[1737681865496,0.87745573,103710.0,103700.0,0.00029112]
[1737681865897,0.78010844,103710.0,103700.0,0.00029112]
[1737681866099,0.77910844,103710.0,103700.0,0.00029112]
[1737681866513,0.76210844,103710.0,103700.0,0.00029112]
[1737681866898,0.75910844,103710.0,103700.0,0.00029112]
[1737681867241,0.76310844,103710.0,103700.0,0.00029112]
[1737681867421,0.81607849,103710.0,103700.0,0.00029112]
[1737681867653,1.14337849,103710.0,103700.0,0.00029112]
[1737681869172,0.91747849,103710.0,103700.0,1.2e-07]
[1737681869580,0.76310844,103710.0,103700.0,1.2e-07]
[1737681869960,0.79314844,103710.0,103700.0,1.2e-07]
[1737681870161,0.77314844,103710.0,103700.0,1.2e-07]
[1737681871084,0.76310844,103710.0,103700.0,1.2e-07]
[1737681871279,0.78310844,103710.0,103700.0,0.00014252]
[1737681871502,0.76310844,103710.0,103700.0,0.00014252]
[1737681875785,0.78891907,103710.0,103700.0,0.00014252]
[1737681877873,0.76310844,103710.0,103700.0,0.00014252]
[1737681878130,0.79310844,103710.0,103700.0,0.00014252]
[1737681878379,0.77310844,103710.0,103700.0,0.00014252]
[1737681878633,0.79310844,103710.0,103700.0,0.00014252]
[1737681878926,0.77310844,103710.0,103700.0,0.00014252]
[1737681879798,0.65090844,103710.0,103700.0,0.00014252]
[1737681879999,0.65090844,103710.0,103700.0,0.15014252]
[1737681880221,0.64690844,103710.0,103700.0,0.15014252]
[1737681880551,0.64990844,103710.0,103700.0,0.15014252]
[1737681880973,0.64690844,103710.0,103700.0,0.15014252]
[1737681881549,0.65090844,103710.0,103700.0,0.15014252]
[1737681882103,0.53367641,103710.0,103700.0,0.07714252]
[1737681882308,0.41659699,103710.0,103700.0,0.22714252]
[1737681882743,0.52382902,103710.0,103700.0,0.07714252]
[1737681882939,0.52412806,103710.0,103700.0,0.07714252]
[1737681883277,0.52012806,103710.0,103700.0,0.07714252]
[1737681883712,0.52312806,103710.0,103700.0,0.07714252]
[1737681885060,0.63036009,103710.0,103700.0,0.07714252]
[1737681885332,0.52312806,103710.0,103700.0,0.07714252]
[1737681887063,0.52012806,103710.0,103700.0,0.07714252]
[1737681887418,0.52212806,103710.0,103700.0,0.07714252]
[1737681887882,0.52012806,103710.0,103700.0,0.07714252]
[1737681888299,0.52212806,103710.0,103700.0,0.07714252]
[1737681889576,0.52216806,103710.0,103700.0,0.07714252]
[1737681890333,0.62940009,103710.0,103700.0,0.07714252]
[1737681891862,0.63940009,103710.0,103700.0,0.00014252]
[1737681892067,0.096441,103690.0,103680.0,0.0784422]
[1737681892296,0.30102032,103690.0,103680.0,0.00014925]
[1737681892428,0.09645,103680.0,103670.0,0.21369433]
[1737681892645,0.43826135,103680.0,103670.0,0.04785836]
[1737681893047,0.53936135,103680.0,103670.0,0.00197911]
[1737681893251,0.096478,103650.0,103640.0,0.0001421]
[1737681893453,0.40828935,103650.0,103640.0,0.00064005]
[1737681894610,0.30105732,103650.0,103640.0,0.00064005]
[1737681895615,0.50105732,103650.0,103640.0,0.00064005]
[1737681896198,0.39382529,103650.0,103640.0,0.00064005]
[1737681896806,0.50105732,103650.0,103640.0,0.00064005]
[1737681897003,0.50105732,103650.0,103640.0,0.09712705]
[1737681897517,0.50105732,103650.0,103640.0,0.00064005]
[1737681897913,0.50105732,103650.0,103640.0,0.09712705]
[1737681898695,0.39382529,103650.0,103640.0,0.09712705]
[1737681899180,0.39482529,103650.0,103640.0,0.09712705]
[1737681900394,0.50205732,103650.0,103640.0,0.00064005]
[1737681901551,0.52145437,103650.0,103640.0,0.00064005]
[1737681908632,0.72603369,103650.0,103640.0,0.00064005]
[1737681908860,0.6586864,103650.0,103640.0,0.00064005]
[1737681909199,0.6486864,103650.0,103640.0,0.00064005]
[1737681909965,0.6476864,103650.0,103640.0,0.00064005]
[1737681910167,0.6276864,103650.0,103640.0,0.00064005]
[1737681910491,0.80813369,103650.0,103640.0,0.00064005]
[1737681911385,0.81213369,103650.0,103640.0,0.00064005]
[1737681911831,0.80813369,103650.0,103640.0,0.00064005]
[1737681912048,0.81513369,103650.0,103640.0,0.00164005]
[1737681912481,0.7277864,103650.0,103640.0,0.00164005]
[1737681913369,0.6646864,103650.0,103640.0,0.00164005]
[1737681913603,0.6446864,103650.0,103640.0,0.00164005]
[1737681913814,0.6646864,103650.0,103640.0,0.00164005]
[1737681916441,0.6546864,103650.0,103640.0,0.00164005]
[1737681916699,0.75203369,103650.0,103640.0,0.00164005]
[1737681917708,0.81473369,103650.0,103640.0,0.00164005]
[1737681917926,0.03,103620.0,103610.0,0.0001422]
[1737681918091,0.096515,103610.0,103600.0,0.079]
[1737681918281,0.19386229,103610.0,103600.0,0.00014961]
[1737681918521,0.30109432,103610.0,103600.0,0.00014961]
[1737681919360,0.30109432,103610.0,103600.0,0.00029201]
[1737681919928,0.36016327,103610.0,103600.0,0.00029201]
[1737681920064,0.4573953,103610.0,103600.0,0.00029201]
[1737681920275,0.35016327,103610.0,103600.0,0.00029201]
[1737681920895,0.35216327,103610.0,103600.0,0.00029201]
[1737681921107,0.4593953,103610.0,103600.0,0.00029201]
[1737681921351,0.35216327,103610.0,103600.0,0.00029201]
[1737681921533,0.55216327,103610.0,103600.0,0.00029201]
[1737681921916,0.56220327,103610.0,103600.0,0.00029201]
[1737681922124,0.53313432,103610.0,103600.0,0.00029201]
[1737681922370,0.51309432,103610.0,103600.0,0.00029201]
[1737681923220,0.52268406,103610.0,103600.0,0.00029201]
[1737681923627,0.52068406,103610.0,103600.0,0.00029201]
[1737681923826,0.52168406,103610.0,103600.0,0.00029201]
[1737681924049,0.51168406,103610.0,103600.0,0.00029201]
[1737681924441,0.51068406,103610.0,103600.0,0.00029201]
[1737681924649,0.53058231,103610.0,103600.0,0.00029201]
[1737681926033,0.42335028,103610.0,103600.0,0.09681701]
[1737681926242,0.41376054,103610.0,103600.0,0.09681701]
[1737681926653,0.41376054,103610.0,103600.0,0.00029201]
[1737681927163,0.52099257,103610.0,103600.0,0.00029201]
[1737681927427,0.52099257,103610.0,103600.0,0.09681701]
[1737681927634,2.02099257,103610.0,103600.0,0.09681701]
[1737681928046,2.02099257,103610.0,103600.0,0.00029201]
[1737681929939,2.02099257,103610.0,103600.0,0.09681701]
[1737681930145,2.02099257,103610.0,103600.0,0.00029201]
[1737681931257,1.91376054,103610.0,103600.0,0.00029201]
[1737681931433,2.02099257,103610.0,103600.0,0.00029201]
[1737681934485,2.00240257,103610.0,103600.0,0.00029201]
[1737681937515,2.00240257,103610.0,103600.0,0.09681701]
[1737681937516,1.81724554,103610.0,103600.0,0.09681701]
[1737681937694,0.31724554,103610.0,103600.0,0.17641701]
[1737681939643,0.201,103610.0,103600.0,0.17641701]
[1737681940535,0.201,103610.0,103600.0,0.22421701]
[1737681941546,0.20129904,103610.0,103600.0,0.22421701]
[1737681941952,0.29781404,103610.0,103600.0,0.22421701]
[1737681942978,0.20129904,103610.0,103600.0,0.37421701]
[1737681943175,0.29781404,103610.0,103600.0,0.37421701]
[1737681948954,0.20129904,103610.0,103600.0,0.37421701]
[1737681950733,0.00129904,103610.0,103600.0,0.43428988]
[1737681951801,0.00029904,103610.0,103600.0,0.43428988]
[1737681952013,0.00029904,103610.0,103600.0,0.55463717]
[1737681952192,0.00029904,103610.0,103600.0,0.55563717]
[1737681955386,0.00029904,103610.0,103600.0,0.45828988]
[1737681955601,0.00029904,103610.0,103600.0,0.43528988]
[1737681956245,1.50029904,103610.0,103600.0,0.43528988]
[1737681956448,0.00029904,103610.0,103600.0,0.40521701]
[1737681956652,0.00029904,103610.0,103600.0,0.43527737]
[1737681956863,0.32759904,103610.0,103600.0,0.43527737]
[1737681957280,0.32759904,103610.0,103600.0,0.5215785]
[1737681960070,0.32759904,103610.0,103600.0,0.43527737]
[1737681960619,0.32759904,103610.0,103600.0,0.28527737]
[1737681971088,0.32759904,103610.0,103600.0,0.40562466]
[1737681973554,0.32759904,103610.0,103600.0,0.49192579]
[1737681977150,0.32759904,103610.0,103600.0,0.49092579]
[1737681977486,0.32759904,103610.0,103600.0,0.49292579]
[1737681980545,0.00029904,103610.0,103600.0,0.40662466]
[1737681984926,0.00029904,103610.0,103600.0,0.70662466]
[1737681985700,0.00029904,103610.0,103600.0,0.70462466]
[1737681985980,0.00029904,103610.0,103600.0,0.70762466]
[1737681986416,0.00029904,103610.0,103600.0,0.70462466]
[1737681986742,0.00029904,103610.0,103600.0,0.70762466]
[1737681987373,0.00029904,103610.0,103600.0,0.70462466]
[1737681988155,0.3273,103640.0,103620.0,0.0828]
[1737681988368,0.3273,103640.0,103630.0,0.26244429]
[1737681988602,0.00029904,103650.0,103640.0,0.096487]
[1737681988995,0.00029904,103650.0,103640.0,0.12654736]
[1737681993063,0.00029904,103650.0,103640.0,0.15654736]
[1737681993682,0.00029904,103650.0,103640.0,0.16594469]
[1737681995160,0.00029904,103650.0,103640.0,0.24104469]
[1737681995377,0.00029904,103650.0,103640.0,0.36139198]
[1737681995586,0.00029904,103650.0,103640.0,0.40639198]
[1737681996312,0.00029904,103650.0,103640.0,0.40739198]
[1737681996749,0.00029904,103650.0,103640.0,0.40639198]
[1737681998112,0.00029904,103650.0,103640.0,0.49488344]
[1737682010944,0.12749904,103650.0,103640.0,0.25443615]
[1737682011389,0.12749904,103650.0,103640.0,0.22437579]
[1737682014751,0.12749904,103650.0,103640.0,0.13788433]
[1737682015655,0.42855636,103650.0,103640.0,0.032]
[1737682015864,0.53578839,103650.0,103640.0,0.032]
[1737682016289,1.92855636,103650.0,103640.0,0.032]
[1737682016699,2.12855636,103650.0,103640.0,0.03]
[1737682017813,0.0755,103630.0,103620.0,0.37600946]
[1737682018024,0.0755,103630.0,103620.0,0.37615907]
[1737682018567,0.0755,103630.0,103620.0,0.08664107]
[1737682018843,0.171997,103630.0,103620.0,0.08664107]
[1737682019357,0.499297,103630.0,103620.0,0.08664107]
[1737682019722,0.4028,103630.0,103620.0,0.08664107]
[1737682019924,0.4028,103630.0,103620.0,0.08864107]
[1737682020101,0.4028,103630.0,103620.0,0.18514707]
[1737682020499,0.4028,103630.0,103620.0,0.33514707]
[1737682022382,0.4028,103630.0,103620.0,0.24865561]
[1737682022927,0.4028,103630.0,103620.0,0.27865561]
[1737682027493,0.3273,103630.0,103620.0,0.27865561]
[1737682027799,0.3273,103630.0,103620.0,0.27665561]
[1737682029029,0.3273,103630.0,103620.0,0.27865561]
[1737682029434,0.3273,103630.0,103620.0,0.27665561]
[1737682029848,0.3273,103630.0,103620.0,0.27765561]
[1737682033731,0.32759904,103630.0,103620.0,0.27765561]
[1737682038264,0.32759904,103630.0,103620.0,0.5219029]
[1737682038375,0.32759904,103630.0,103620.0,0.55185385]
[1737682039862,0.32759904,103630.0,103620.0,0.15760656]
[1737682040069,0.32759904,103630.0,103620.0,0.03114961]
[1737682040070,0.61362807,103630.0,103620.0,0.03114961]
[1737682040281,0.38367536,103630.0,103620.0,0.03114961]
[1737682040485,1.93207536,103630.0,103620.0,0.03114961]
[1737682040698,2.13207536,103630.0,103620.0,0.03114961]
[1737682045428,2.15143301,103630.0,103620.0,0.03114961]
[1737682046253,2.04420098,103630.0,103620.0,0.03114961]
[1737682046472,0.54420098,103630.0,103620.0,0.03114961]
[1737682047218,0.65143301,103630.0,103620.0,0.03114961]
[1737682047775,0.54420098,103630.0,103620.0,0.03114961]
[1737682049224,0.44685369,103630.0,103620.0,0.27765561]
[1737682049648,0.33099904,103630.0,103620.0,0.27765561]
[1737682049955,0.48632807,103630.0,103620.0,0.18114961]
[1737682055028,0.48632807,103630.0,103620.0,0.03114961]
[1737682055771,0.28259904,103630.0,103620.0,0.12765561]
[1737682055979,0.20029904,103630.0,103620.0,0.12765561]
[1737682056645,0.00029904,103630.0,103620.0,0.12765561]
[1737682058082,0.00029904,103630.0,103620.0,0.23283496]
[1737682059384,0.00029904,103630.0,103620.0,0.39898225]
[1737682060598,0.00029904,103630.0,103620.0,0.40871581]
[1737682060795,0.00029904,103630.0,103620.0,0.70771581]
[1737682061162,0.00029904,103630.0,103620.0,0.70971581]
[1737682061650,0.00029904,103630.0,103620.0,0.70771581]
[1737682062116,0.00029904,103630.0,103620.0,0.72071581]
[1737682062671,0.00029904,103630.0,103620.0,0.71071581]
[1737682062916,0.00029904,103630.0,103620.0,0.70771581]
[1737682063887,0.00029904,103630.0,103620.0,0.40771581]
[1737682064334,0.00029904,103630.0,103620.0,0.41171581]
[1737682067045,0.00029904,103630.0,103620.0,0.38871581]
[1737682067315,0.00029904,103630.0,103620.0,0.17046852]
[1737682067540,0.00029904,103630.0,103620.0,0.03414961]
[1737682067756,0.53132807,103630.0,103620.0,0.03414961]
[1737682067993,0.53132807,103630.0,103620.0,0.03014961]
[1737682068395,0.53132807,103630.0,103620.0,0.03314961]
[1737682068597,0.85392807,103630.0,103620.0,0.03314961]
[1737682068800,0.85392807,103630.0,103620.0,0.03014961]
[1737682069182,0.85392807,103630.0,103620.0,0.03214961]
[1737682070191,2.35392807,103630.0,103620.0,0.03214961]
[1737682070661,2.35392807,103630.0,103620.0,0.03014961]
[1737682071049,2.12397536,103630.0,103620.0,0.03014961]
[1737682071286,2.12397536,103630.0,103620.0,0.00014961]
[1737682071287,2.15303564,103630.0,103620.0,0.00014961]
[1737682071530,2.26026767,103630.0,103620.0,0.00014961]
[1737682071785,2.15303564,103630.0,103620.0,0.00014961]
[1737682072358,2.23120739,103630.0,103620.0,0.00014961]
[1737682072581,2.12497536,103630.0,103620.0,0.00014961]
[1737682074963,2.13480321,103630.0,103620.0,0.00014961]
[1737682075420,2.15433617,103630.0,103620.0,0.00014961]
[1737682076189,0.65433617,103630.0,103620.0,0.00014961]
[1737682082097,2.15433617,103630.0,103620.0,0.00014961]
[1737682083631,0.50060414,103630.0,103620.0,0.00014961]
[1737682083804,0.20129904,103630.0,103620.0,0.09665561]
[1737682084165,0.20129904,103630.0,103620.0,0.17725561]
[1737682084671,0.00129904,103630.0,103620.0,0.17725561]
[1737682086149,0.00129904,103630.0,103620.0,0.2976029]
[1737682086348,0.00029904,103630.0,103620.0,0.2976029]
[1737682086645,0.00029904,103630.0,103620.0,0.17725561]
[1737682089740,0.00029904,103630.0,103620.0,0.2976029]
[1737682092155,0.00029904,103630.0,103620.0,0.32751908]
[1737682093009,0.00029904,103630.0,103620.0,0.37531908]
[1737682094059,0.00029904,103630.0,103620.0,0.37831908]
[1737682098972,0.00029904,103630.0,103620.0,0.3484029]
[1737682099178,0.00029904,103630.0,103620.0,0.25798621]
[1737682099429,0.00029904,103630.0,103620.0,0.18025561]
[1737682100203,0.00029904,103630.0,103620.0,0.17725561]
[1737682100441,0.00029904,103630.0,103620.0,0.09665561]
[1737682100864,0.00029904,103630.0,103620.0,0.09865561]
[1737682102545,0.32759904,103630.0,103620.0,0.09865561]
[1737682104867,0.32759904,103630.0,103620.0,0.17455561]
[1737682106042,0.32759904,103630.0,103620.0,0.20455561]
[1737682106692,0.00029904,103630.0,103620.0,0.40116615]
[1737682108789,0.0001853,103630.0,103620.0,0.40116615]
[1737682109308,0.0001853,103630.0,103620.0,0.71116615]
[1737682110057,0.0001853,103630.0,103620.0,0.79759977]
[1737682110238,0.0001853,103630.0,103620.0,0.79559977]
[1737682111527,0.0001853,103630.0,103620.0,0.79759977]
[1737682112694,3e-07,103630.0,103620.0,0.79759977]
[1737682112921,3e-07,103630.0,103620.0,0.71116615]
[1737682114301,3e-07,103630.0,103620.0,1.03416615]
[1737682115106,3e-07,103630.0,103620.0,1.18430845]
[1737682122269,4e-08,103650.0,103640.0,0.701487]
[1737682122480,4e-08,103650.0,103640.0,0.82879754]
[1737682124005,4e-08,103650.0,103640.0,0.83179754]
[1737682124453,4e-08,103650.0,103640.0,0.82879754]
[1737682124853,4e-08,103650.0,103640.0,0.82179754]
[1737682125109,4e-08,103650.0,103640.0,0.52179754]
[1737682126123,4e-08,103650.0,103640.0,0.53179754]
[1737682128152,4e-08,103650.0,103640.0,0.54136716]
[1737682138786,4e-08,103650.0,103640.0,0.54150946]
[1737682139345,4e-08,103650.0,103640.0,0.83150946]
[1737682139552,0.12060004,103650.0,103640.0,0.23650946]
[1737682140187,0.12060004,103650.0,103640.0,0.0031423]
[1737682140188,2.15161007,103650.0,103640.0,0.0031423]
[1737682140382,0.52888939,103650.0,103640.0,0.0031423]
[1737682140585,0.72888939,103650.0,103640.0,0.0001423]
[1737682140877,1.727487,103640.0,103630.0,0.01]
[1737682141102,1.83471903,103640.0,103630.0,0.01]
[1737682141308,0.43206632,103640.0,103630.0,0.01]
[1737682141675,0.63206632,103640.0,103630.0,0.01]
[1737682144749,0.65140632,103640.0,103630.0,0.01]
[1737682146677,0.63206632,103640.0,103630.0,0.01]
[1737682146852,0.52483429,103640.0,103630.0,0.01]
[1737682147295,0.63206632,103640.0,103630.0,0.01]
[1737682147910,0.52483429,103640.0,103630.0,0.01]
[1737682148142,0.52483429,103640.0,103630.0,0.014]
[1737682148551,0.63206632,103640.0,103630.0,0.044]
[1737682149138,0.52483429,103640.0,103630.0,0.044]
[1737682150059,0.52483429,103640.0,103630.0,0.0441423]
[1737682150210,0.63206632,103640.0,103630.0,0.0441423]
[1737682150407,0.63236515,103640.0,103630.0,0.0441423]
[1737682151578,0.63236515,103640.0,103630.0,0.0401423]
[1737682151754,0.63236515,103640.0,103630.0,0.0411423]
[1737682152159,0.62236515,103640.0,103630.0,0.0411423]
[1737682152354,0.62336515,103640.0,103630.0,0.0411423]
[1737682154700,0.51613312,103640.0,103630.0,0.1376393]
[1737682155069,0.51613312,103640.0,103630.0,0.0411423]
[1737682155257,0.62336515,103640.0,103630.0,0.0411423]
[1737682156932,0.51613312,103640.0,103630.0,0.0411423]
[1737682157358,0.51613312,103640.0,103630.0,0.1376393]
[1737682158712,0.31613312,103640.0,103630.0,0.1376393]
[1737682158918,0.31613312,103640.0,103630.0,0.0411423]
[1737682159118,0.42336515,103640.0,103630.0,0.0411423]
[1737682159694,0.62336515,103640.0,103630.0,0.0411423]
[1737682161073,0.62336515,103640.0,103630.0,0.0111423]
[1737682162827,0.51613312,103640.0,103630.0,0.0111423]
[1737682163081,0.62336515,103640.0,103630.0,0.0111423]
[1737682166796,0.64336515,103640.0,103630.0,0.0111423]
[1737682167032,0.74059718,103640.0,103630.0,0.0111423]
[1737682167466,0.63336515,103640.0,103630.0,0.0111423]
[1737682168096,0.73496515,103640.0,103630.0,0.0101423]
[1737682168258,0.63336515,103640.0,103630.0,0.0111423]
[1737682168453,0.65150715,103640.0,103630.0,0.0111423]
[1737682168612,0.65050715,103640.0,103630.0,0.0111423]
[1737682169044,0.65350715,103640.0,103630.0,0.0111423]
[1737682169619,0.65050715,103640.0,103630.0,0.0111423]
[1737682169847,0.65450715,103640.0,103630.0,0.0111423]
[1737682173164,0.64450715,103640.0,103630.0,0.0111423]
[1737682173318,2.13436515,103640.0,103630.0,0.0111423]
[1737682173947,2.13436515,103640.0,103630.0,0.1076393]
[1737682173948,1.90613312,103640.0,103630.0,0.1076393]
[1737682174159,0.21229883,103640.0,103630.0,0.1076393]
[1737682174365,0.30478583,103640.0,103630.0,0.1076393]
[1737682174581,0.29678583,103640.0,103630.0,0.1066393]
[1737682174783,0.41201786,103640.0,103630.0,0.0101423]
[1737682174991,0.50936515,103640.0,103630.0,0.021787]
[1737682175204,0.50636515,103640.0,103630.0,0.021787]
[1737682175420,0.50836515,103640.0,103630.0,0.021787]
[1737682176062,0.50336515,103640.0,103630.0,0.0101423]
[1737682176531,0.50536515,103640.0,103630.0,0.0101423]
[1737682177080,0.55046515,103640.0,103630.0,0.0101423]
[1737682177729,0.57046515,103640.0,103630.0,0.0101423]
[1737682182127,0.57046515,103640.0,103630.0,0.02179031]
[1737682183063,0.57046515,103640.0,103630.0,0.0101423]
[1737682184845,0.52536515,103640.0,103630.0,0.0101423]
[1737682185239,0.52536515,103640.0,103630.0,0.0217966]
[1737682186100,0.52536515,103640.0,103630.0,0.0101423]
[1737682187093,0.50536515,103640.0,103630.0,0.0101423]
[1737682187517,0.52536515,103640.0,103630.0,0.0101423]
[1737682190092,0.57326515,103640.0,103630.0,0.0101423]
[1737682192803,0.55326515,103640.0,103630.0,0.0101423]
[1737682193008,0.39813312,103640.0,103630.0,0.0101423]
[1737682193459,1.89813312,103640.0,103630.0,0.0101423]
[1737682193871,1.89413312,103640.0,103630.0,0.0101423]
[1737682194070,1.79678583,103640.0,103630.0,0.02280098]
[1737682194289,1.79778583,103640.0,103630.0,0.02280098]
[1737682194495,1.90501786,103640.0,103630.0,0.02280098]
[1737682195156,2.00236515,103640.0,103630.0,0.04146299]
[1737682196068,0.20129883,103640.0,103630.0,0.04146299]
[1737682196223,0.20129883,103640.0,103630.0,0.13795999]
[1737682196400,0.20129883,103640.0,103630.0,0.11929798]
[1737682196605,0.00129883,103640.0,103630.0,0.11929798]
[1737682197662,0.20129883,103640.0,103630.0,0.11929798]
[1737682198619,0.00129883,103640.0,103630.0,0.11929798]
[1737682200098,1.50129883,103640.0,103630.0,0.26929798]
[1737682200294,1.59778583,103640.0,103630.0,0.17280098]
[1737682200500,1.80236515,103640.0,103630.0,0.1611423]
[1737682200715,2.00236515,103640.0,103630.0,0.1611423]
[1737682201310,2.08066515,103640.0,103630.0,0.1611423]
[1737682201512,0.62746515,103640.0,103630.0,0.0111423]
[1737682202014,0.50236515,103640.0,103630.0,0.0111423]
[1737682203913,2.00236515,103640.0,103630.0,0.0111423]
[1737682207793,0.20129883,103640.0,103630.0,0.3388393]
[1737682208006,0.20129883,103640.0,103630.0,0.36893369]
[1737682208203,0.20129883,103640.0,103630.0,0.53848098]
[1737682208667,0.00129883,103640.0,103630.0,0.53848098]
[1737682208847,0.00029883,103640.0,103630.0,0.53848098]
[1737682209134,0.00029883,103640.0,103630.0,0.53748098]
[1737682209533,0.00029883,103640.0,103630.0,0.54148098]
[1737682210734,0.00029883,103640.0,103630.0,0.53748098]
[1737682211049,0.00129883,103640.0,103630.0,0.54448098]
[1737682211249,0.00129883,103640.0,103630.0,0.54548098]
[1737682212441,0.00129883,103640.0,103630.0,0.55489297]
[1737682213870,0.00029883,103640.0,103630.0,0.54789297]
[1737682214069,0.00029883,103640.0,103630.0,0.55689297]
[1737682214366,0.00129883,103640.0,103630.0,0.55689297]
[1737682214568,0.00129883,103640.0,103630.0,0.55589297]
[1737682215013,0.00129883,103640.0,103630.0,0.55889297]
[1737682221555,0.00129883,103640.0,103630.0,0.37479526]
[1737682221721,0.00129883,103640.0,103630.0,0.28608888]
[1737682221929,0.00129883,103640.0,103630.0,0.20488888]
[1737682222137,0.09778583,103640.0,103630.0,0.10839188]
[1737682222545,0.09678583,103640.0,103630.0,0.09639188]
[1737682222698,0.09678583,103640.0,103630.0,0.12001075]
[1737682222906,1.59678583,103640.0,103630.0,0.12001075]
[1737682223109,1.59678583,103640.0,103630.0,0.11101075]
[1737682223314,1.59678583,103640.0,103630.0,0.11401075]
[1737682223677,1.79678583,103640.0,103630.0,0.11401075]
[1737682223902,1.79678583,103640.0,103630.0,0.10239188]
[1737682224208,1.70029883,103640.0,103630.0,0.19888888]
[1737682224621,1.59678583,103640.0,103630.0,0.19588888]
[1737682225104,1.50029883,103640.0,103630.0,0.19588888]
[1737682225306,0.00029883,103640.0,103630.0,0.1096393]
[1737682226204,0.00029883,103640.0,103630.0,0.121259]
[1737682226205,0.09678583,103640.0,103630.0,0.121259]
[1737682226405,0.01990964,103640.0,103630.0,0.121259]
[1737682226983,0.11639664,103640.0,103630.0,0.121259]
[1737682227284,0.44369664,103640.0,103630.0,0.121259]
[1737682228121,0.34720964,103640.0,103630.0,0.121259]
[1737682231646,0.44369664,103640.0,103630.0,0.121259]
[1737682232610,0.34720964,103640.0,103630.0,0.121259]
[1737682232798,0.32759883,103640.0,103630.0,0.121259]
[1737682233022,0.32759883,103640.0,103630.0,0.199259]
[1737682233951,0.32759883,103640.0,103630.0,0.121259]
[1737682237604,0.32759883,103640.0,103630.0,0.13988926]
[1737682239078,0.00029883,103640.0,103630.0,0.13988926]
[1737682241639,0.00029883,103640.0,103630.0,0.04339226]
[1737682241837,0.00974171,103640.0,103630.0,0.13988926]
[1737682241975,0.00029883,103640.0,103630.0,0.13988926]
[1737682242206,0.09678583,103640.0,103630.0,0.04339226]
[1737682242422,0.00029883,103640.0,103630.0,0.04339226]
[1737682242700,0.09678583,103640.0,103630.0,0.04339226]
[1737682242932,0.00029883,103640.0,103630.0,0.04339226]
[1737682243153,0.09678583,103640.0,103630.0,0.024762]
[1737682243377,0.01987471,103640.0,103630.0,0.024762]
[1737682243598,0.11636171,103640.0,103630.0,0.024762]
[1737682244695,0.31636171,103640.0,103630.0,0.024762]
[1737682244909,0.21987471,103640.0,103630.0,0.024762]
[1737682245109,0.54717471,103640.0,103630.0,0.024762]
[1737682245751,0.34717471,103640.0,103630.0,0.024762]
[1737682246023,0.44366171,103640.0,103630.0,0.024762]
[1737682246779,0.83069374,103640.0,103630.0,0.024762]
[1737682247026,0.60074103,103640.0,103630.0,0.024762]
[1737682247264,2.10074103,103640.0,103630.0,0.024762]
[1737682247962,2.10074103,103640.0,103630.0,0.0131423]
[1737682248445,2.10074103,103640.0,103630.0,0.0101423]
[1737682248652,2.26358832,103640.0,103630.0,0.0101423]
[1737682248859,2.16624103,103640.0,103630.0,0.0101423]
[1737682249056,0.66624103,103640.0,103630.0,0.0101423]
[1737682249242,0.28552903,103630.0,103620.0,0.00029191]
[1737682249445,0.38287632,103630.0,103620.0,0.00029191]
[1737682250382,0.55600835,103630.0,103620.0,0.00029191]
[1737682250679,0.178306,103620.0,103610.0,0.0001424]
[1737682250925,0.38288532,103620.0,103610.0,0.0001424]
[1737682251987,0.38388532,103620.0,103610.0,0.0001424]
[1737682253757,0.58388532,103620.0,103610.0,0.0001424]
[1737682253995,2.08388532,103620.0,103610.0,0.0001424]
[1737682254256,2.00208532,103620.0,103610.0,0.0001424]
[1737682255439,0.50208532,103620.0,103610.0,0.0001424]
[1737682256329,0.297506,103620.0,103610.0,0.0001424]
[1737682256650,0.097506,103620.0,103610.0,0.0001424]
[1737682257043,0.096506,103620.0,103610.0,0.0966574]
[1737682257255,0.22263699,103620.0,103610.0,0.0001424]
[1737682257655,0.42263699,103620.0,103610.0,0.0001424]
[1737682258050,0.42263699,103620.0,103610.0,0.0031424]
[1737682258178,0.70631631,103620.0,103610.0,0.0031424]
[1737682258413,0.75311631,103620.0,103610.0,0.0031424]
[1737682258612,0.8504636,103620.0,103610.0,0.0031424]
[1737682258937,0.75311631,103620.0,103610.0,0.0031424]
[1737682259290,0.75311631,103620.0,103610.0,0.0001424]
[1737682259709,0.75511631,103620.0,103610.0,0.0001424]
[1737682260202,0.75811631,103620.0,103610.0,0.0001424]
[1737682260319,0.76797271,103620.0,103610.0,0.0001424]
[1737682265184,0.76827154,103620.0,103610.0,0.0001424]
[1737682268656,0.53513951,103620.0,103610.0,0.0001424]
[1737682269698,0.64237154,103620.0,103610.0,0.0001424]
[1737682269905,0.53513951,103620.0,103610.0,0.0001424]
[1737682270293,0.64237154,103620.0,103610.0,0.0001424]
[1737682271716,0.53513951,103620.0,103610.0,0.0001424]
[1737682272630,0.53313951,103620.0,103610.0,0.0001424]
[1737682273033,0.53413951,103620.0,103610.0,0.0001424]
[1737682273974,0.53113951,103620.0,103610.0,0.0001424]
[1737682274692,0.63837154,103620.0,103610.0,0.0001424]
[1737682275323,0.63737154,103620.0,103610.0,0.0001424]
[1737682275785,0.63937154,103620.0,103610.0,0.0001424]
[1737682275996,0.79197154,103620.0,103610.0,0.0001424]
[1737682276249,0.80497154,103620.0,103610.0,0.0001424]
[1737682278636,0.80501154,103620.0,103610.0,0.0001424]
[1737682279067,0.80501154,103620.0,103610.0,4e-07]
[1737682279273,0.89235883,103620.0,103610.0,4e-07]
[1737682279670,0.90235883,103620.0,103610.0,4e-07]
[1737682280684,0.89235883,103620.0,103610.0,4e-07]
[1737682280832,0.90235883,103620.0,103610.0,4e-07]
[1737682282492,0.89235883,103620.0,103610.0,4e-07]
[1737682282639,0.90235883,103620.0,103610.0,4e-07]
[1737682283084,0.80501154,103620.0,103610.0,4e-07]
[1737682283279,2.30501154,103620.0,103610.0,4e-07]
[1737682284757,0.80501154,103620.0,103610.0,4e-07]
[1737682285169,0.80001154,103620.0,103610.0,4e-07]
[1737682285491,0.80901154,103620.0,103610.0,0.0020004]
[1737682286077,0.80901154,103620.0,103610.0,0.0010004]
[1737682286078,0.80301154,103620.0,103610.0,0.0010004]
[1737682286257,0.80701154,103620.0,103610.0,0.0010004]